fUSD/lending_fUSD_20240725
["ID","MTS","AMOUNT","RATE_DAILY","PERIOD"]
[333147235,1721887849834,-1314.14096078,0.00010999,2]
[333147236,1721887849844,-1207.13,0.00010999,2]
[333147237,1721887849854,-2894.44,0.00010999,2]
[333147238,1721887849867,-1207.13,0.00010999,2]
[333147239,1721887849877,-2894.44,0.00010999,2]
[333147240,1721887849889,-1207.13,0.00010999,2]
[333147241,1721887849900,-2894.44,0.00010999,2]
[333147242,1721887849910,-1207.13,0.00010999,2]
[333147243,1721887849920,-2894.44,0.00010999,2]
[333147244,1721887849929,-1207.24886519,0.00010999,2]
[333147245,1721887849940,-2894.44,0.00010999,2]
[333147246,1721887849950,-2894.44,0.00010999,2]
[333147247,1721887849960,-2894.59165045,0.00010999,2]
[333147248,1721887849970,-500.0,0.00010999,2]
[333147249,1721887849980,-500.0,0.00010999,2]
[333147250,1721887849990,-606.54,0.00010999,2]
[333147251,1721887850001,-500.0,0.00010999,2]
[333147252,1721887850011,-606.54,0.00010999,2]
[333147253,1721887850022,-500.0,0.00010999,2]
[333147254,1721887850031,-500.0,0.00010999,2]
[333147255,1721887850042,-606.54,0.00010999,2]
[333147256,1721887850052,-500.0,0.00010999,2]
[333147257,1721887850062,-500.0,0.00010999,2]
[333147258,1721887850073,-606.54,0.00010999,2]
[333147259,1721887850084,-606.54,0.00010999,2]
[333147260,1721887850095,-500.0,0.00010999,2]
[333147261,1721887850105,-606.54,0.00010999,2]
[333147262,1721887850115,-500.0,0.00010999,2]
[333147263,1721887850126,-606.54,0.00010999,2]
[333147264,1721887850136,-500.0,0.00010999,2]
[333147265,1721887850147,-500.0,0.00010999,2]
[333147266,1721887850157,-606.54,0.00010999,2]
[333147267,1721887850168,-422.38681207,0.00010999,2]
[333147268,1721887850178,-606.54,0.00010999,2]
[333147269,1721887850188,-606.54,0.00010999,2]
[333147270,1721887850199,-606.54,0.00010999,2]
[333147271,1721887850210,-606.54,0.00010999,2]
[333147272,1721887850220,-606.54,0.00010999,2]
[333147273,1721887850230,-606.54,0.00010999,2]
[333147274,1721887850240,-606.54,0.00010999,2]
[333147275,1721887850250,-606.65,0.00010999,2]
[333147276,1721887850260,-1736.03,0.00010999,2]
[333147277,1721887850270,-1736.03,0.00010999,2]
[333147278,1721887850280,-1736.03,0.00010999,2]
[333147279,1721887850291,-1736.03,0.00010999,2]
[333147280,1721887850301,-1736.03,0.00010999,2]
[333147281,1721887850311,-1736.03,0.00010999,2]
[333147282,1721887850321,-1736.03,0.00010999,2]
[333147284,1721887850332,-1736.03,0.00010999,2]
[333147286,1721887850341,-1736.03,0.00010999,2]
[333147288,1721887850350,-1736.03,0.00010999,2]
[333147290,1721887850361,-1736.03,0.00010999,2]
[333147292,1721887850370,-1736.03,0.00010999,2]
[333147294,1721887850380,-1736.03,0.00010999,2]
[333147295,1721887850390,-1736.03,0.00010999,2]
[333147297,1721887850399,-1736.03,0.00010999,2]
[333147299,1721887850409,-1736.26316211,0.00010999,2]
[333147300,1721887850419,-2583.52,0.00010999,2]
[333147302,1721887850429,-2583.52,0.00010999,2]
[333147303,1721887850439,-1854.32,0.00010999,2]
[333147304,1721887850449,-2583.52,0.00010999,2]
[333147305,1721887850459,-1854.32,0.00010999,2]
[333147306,1721887850470,-2583.52,0.00010999,2]
[333147307,1721887850479,-1854.32,0.00010999,2]
[333147308,1721887850489,-2583.52,0.00010999,2]
[333147309,1721887850499,-2583.52,0.00010999,2]
[333147310,1721887850508,-1854.32,0.00010999,2]
[333147311,1721887850517,-2583.52,0.00010999,2]
[333147312,1721887850527,-1854.32,0.00010999,2]
[333147313,1721887850536,-2583.52,0.00010999,2]
[333147314,1721887850546,-1854.32,0.00010999,2]
[333147315,1721887850555,-2583.52,0.00010999,2]
[333147316,1721887850565,-1854.32,0.00010999,2]
[333147317,1721887850574,-2583.52,0.00010999,2]
[333147318,1721887850584,-1854.32,0.00010999,2]
[333147319,1721887850594,-2583.52,0.00010999,2]
[333147320,1721887850603,-1854.32,0.00010999,2]
[333147321,1721887850612,-2583.52,0.00010999,2]
[333147322,1721887850622,-2583.52,0.00010999,2]
[333147323,1721887850631,-1854.32,0.00010999,2]
[333147324,1721887850640,-2583.52,0.00010999,2]
[333147325,1721887850650,-1854.32,0.00010999,2]
[333147326,1721887850660,-2583.52,0.00010999,2]
[333147327,1721887850669,-1854.32,0.00010999,2]
[333147328,1721887850680,-1210.86511864,0.00010999,2]
[333147346,1721887851158,-1372.86653829,0.00010999,2]
[333147347,1721887851168,-21.01952862,0.00010999,2]
[333147348,1721887851179,-332.665,0.00010999,2]
[333147349,1721887851191,-1500.63547138,0.00010999,2]
[333147350,1721887851200,-1854.32,0.00010999,2]
[333147351,1721887851211,-757.92306118,0.00010999,2]
[333147352,1721887851222,-1096.39693882,0.00010999,2]
[333147353,1721887851232,-1854.50046511,0.00010999,2]
[333147354,1721887851242,-4526.57,0.00010999,2]
[333147355,1721887851251,-4526.57,0.00010999,2]
[333147356,1721887851260,-4526.57,0.00010999,2]
[333147357,1721887851269,-4526.57,0.00010999,2]
[333147358,1721887851279,-4526.57,0.00010999,2]
[333147359,1721887851288,-4526.57,0.00010999,2]
[333147360,1721887851297,-4526.57,0.00010999,2]
[333147361,1721887851307,-2315.43906062,0.00010999,2]
[333147362,1721887851318,-1259.96086,0.00010999,2]
[333147363,1721887851329,-951.17007938,0.00010999,2]
[333147364,1721887851340,-1893.50360416,0.00010999,2]
[333147365,1721887851665,-399.18898143,0.00010993,2]
[333147366,1721887851676,-1266.66506267,0.00010993,2]
[333147367,1721887851689,-1332.53326433,0.00010993,2]
[333147368,1721887851699,-641.85958326,0.00010993,2]
[333147369,1721887851711,-1718.72171624,0.00010993,2]
[333147370,1721887851725,-659.44059965,0.00010993,2]
[333147371,1721887851811,-312.95703579,0.00010993,2]
[333147372,1721887851946,-43668.63375663,0.00010993,2]
[333147373,1721887851956,-523.0,0.00010999,2]
[333147374,1721887851965,-2633.06639584,0.00010999,2]
[333147375,1721887851975,-3661.54994717,0.00010999,2]
[333147376,1721887851986,-354.529975,0.00010999,2]
[333147377,1721887861937,165.51,8.532e-05,2]
[333147379,1721888019200,635.29,8.219e-05,2]
[333147380,1721888380457,165.51,7.971e-05,2]
[333147397,1721888693556,689.93,8.219e-05,2]
[333147412,1721888916553,1200.0,9e-05,2]
[333147452,1721889033552,-250.0,9.837e-05,2]
[333147454,1721889033564,-138.88750137,9.888e-05,2]
[333147457,1721889033576,-11.11249863,9.888e-05,2]
[333147459,1721889033585,-2206.93168191,9.962e-05,2]
[333147461,1721889033594,-480.0,9.984e-05,2]
[333147462,1721889033603,-326.44,0.0001,2]
[333147465,1721889033622,-150.0,0.0001001,2]
[333147466,1721889033634,-520.0,0.00010053,2]
[333147468,1721889033644,-150.0,0.00010132,2]
[333147469,1721889033654,-150.0,0.00010254,2]
[333147470,1721889033663,-150.0,0.00010376,2]
[333147471,1721889033673,-689.93,0.00010475,2]
[333147473,1721889033683,-150.0,0.00010498,2]
[333147474,1721889033693,-150.0,0.0001062,2]
[333147475,1721889033703,-150.0,0.00010742,2]
[333147476,1721889033712,-1000.0,0.000108,2]
[333147477,1721889033723,-1000.00238141,0.000108,2]
[333147478,1721889033732,-150.0,0.00010864,2]
[333147479,1721889033742,-2874.59073,0.0001089,2]
[333147480,1721889033751,-300.0,0.00010896,2]
[333147481,1721889033761,-169.0,0.00010896,2]
[333147482,1721889033770,-1000.0,0.00010897,2]
[333147483,1721889033780,-158.12858035,0.00010898,2]
[333147484,1721889033790,-585.30785921,0.000109,2]
[333147485,1721889033800,-417.14,0.000109,2]
[333147486,1721889033811,-169.64893334,0.000109,2]
[333147487,1721889033820,-220.77,0.00010904,3]
[333147488,1721889033830,-2206.93168191,0.00010909,2]
[333147489,1721889033839,-4575.44751834,0.00010909,2]
[333147490,1721889033849,-4575.44751834,0.00010909,2]
[333147491,1721889033859,-500.0,0.00010912,2]
[333147492,1721889033868,-150.0,0.00010917,2]
[333147493,1721889033878,-23011.30501506,0.00010918,2]
[333147494,1721889033891,-3293.22799159,0.00010918,2]
[333147495,1721889033907,-2051.00113365,0.00010918,2]
[333147496,1721889033923,-669.98167505,0.00010918,2]
[333147497,1721889033934,-1378.01313465,0.00010918,2]
[333147498,1721889033947,-15739.95000001,0.00010918,2]
[333147499,1721889033979,-824.56078662,0.00010918,2]
[333147500,1721889033991,-4778.70087368,0.00010918,2]
[333147501,1721889034007,-1000.0,0.00010918,2]
[333147502,1721889034064,-757.21613236,0.00010918,2]
[333147514,1721889038634,-48219.66867643,0.00010918,2]
[333147515,1721889038644,-1500.0,0.00010959,5]
[333147516,1721889038654,-4237.38568205,0.00010975,2]
[333147517,1721889038666,-158.75268392,0.00010975,2]
[333147518,1721889038676,-151.55477496,0.00010986,2]
[333147519,1721889038686,-550.0,0.00010988,2]
[333147520,1721889038696,-2382.0,0.00010988,2]
[333147521,1721889038705,-150.0,0.00010988,2]
[333147522,1721889038714,-1994.0,0.00010988,2]
[333147523,1721889038724,-3283.0,0.00010988,2]
[333147524,1721889038734,-5828.0,0.00010988,2]
[333147525,1721889038743,-1830.0,0.00010988,2]
[333147526,1721889038753,-1663.0,0.00010988,2]
[333147527,1721889038762,-1202.0,0.00010988,2]
[333147528,1721889038772,-1669.0,0.00010988,2]
[333147529,1721889038782,-38358.0,0.00010988,2]
[333147530,1721889038791,-465.02798659,0.00010992,2]
[333147531,1721889038801,-380.2491322,0.00010992,2]
[333147532,1721889038812,-500.0,0.00010992,2]
[333147533,1721889038821,-552.99,0.00010992,2]
[333147534,1721889038831,-500.0,0.00010992,2]
[333147535,1721889038840,-887.63,0.00010992,2]
[333147536,1721889038849,-500.0,0.00010992,2]
[333147537,1721889038859,-2865.58,0.00010992,2]
[333147538,1721889038869,-500.0,0.00010992,2]
[333147539,1721889038878,-863.11,0.00010992,2]
[333147540,1721889038888,-500.0,0.00010992,2]
[333147541,1721889038898,-3169.01,0.00010992,2]
[333147543,1721889038907,-500.0,0.00010992,2]
[333147545,1721889038917,-500.0,0.00010992,2]
[333147547,1721889038927,-2725.27,0.00010992,2]
[333147549,1721889038936,-500.0,0.00010992,2]
[333147551,1721889038946,-956.08,0.00010992,2]
[333147553,1721889038957,-7855.67,0.00010992,2]
[333147555,1721889038966,-713.8,0.00010992,2]
[333147557,1721889038976,-4842.99,0.00010992,2]
[333147559,1721889038986,-843.52,0.00010992,2]
[333147561,1721889038995,-2012.44,0.00010992,2]
[333147563,1721889039005,-7195.15,0.00010992,2]
[333147565,1721889039015,-1571.2,0.00010992,2]
[333147567,1721889039024,-8297.29,0.00010992,2]
[333147569,1721889039033,-599.5497828,0.00010992,2]
[333147571,1721889039043,-2347.48,0.00010992,2]
[333147573,1721889039052,-2986.69,0.00010992,2]
[333147575,1721889039065,-8510.53,0.00010992,2]
[333147577,1721889039074,-1483.45,0.00010992,2]
[333147579,1721889039083,-2743.65,0.00010992,2]
[333147581,1721889039093,-1952.41,0.00010992,2]
[333147583,1721889039103,-2354.59,0.00010992,2]
[333147585,1721889039113,-2559.96,0.00010992,2]
[333147587,1721889039122,-2224.35,0.00010992,2]
[333147589,1721889039131,-2769.04,0.00010992,2]
[333147591,1721889039140,-329.34745192,0.00010992,2]
[333147593,1721889039150,-3333.86,0.00010992,2]
[333147595,1721889039159,-1378.46,0.00010992,2]
[333147597,1721889039168,-500.0,0.00010992,2]
[333147599,1721889039177,-500.0,0.00010992,2]
[333147601,1721889039187,-500.0,0.00010993,2]
[333147603,1721889039197,-451.38887287,0.00010993,2]
[333147605,1721889039206,-1742.99,0.00010993,2]
[333147606,1721889039215,-500.0,0.00010993,2]
[333147608,1721889039225,-574.98723437,0.00010993,2]
[333147610,1721889039236,-500.0,0.00010993,2]
[333147612,1721889039247,-1692.1,0.00010993,2]
[333147614,1721889039257,-784.77,0.00010993,2]
[333147616,1721889039266,-3771.44,0.00010993,2]
[333147618,1721889039275,-1181.64,0.00010993,2]
[333147620,1721889039285,-196.87530316,0.00010993,2]
[333147621,1721889039294,-2888.62,0.00010993,2]
[333147623,1721889039304,-1501.91,0.00010993,2]
[333147625,1721889039317,-4009.86,0.00010993,2]
[333147627,1721889039327,-500.0,0.00010993,2]
[333147629,1721889039336,-3303.22,0.00010993,2]
[333147631,1721889039346,-4154.96,0.00010993,2]
[333147633,1721889039356,-2952.26,0.00010993,2]
[333147635,1721889039365,-18103.22,0.00010993,2]
[333147637,1721889039375,-1265.18,0.00010993,2]
[333147639,1721889039384,-3738.99,0.00010993,2]
[333147640,1721889039393,-4755.47,0.00010993,2]
[333147642,1721889039403,-3500.4,0.00010993,2]
[333147644,1721889039412,-1268.85,0.00010993,2]
[333147646,1721889039421,-3902.49,0.00010993,2]
[333147648,1721889039431,-1152.91,0.00010993,2]
[333147650,1721889039442,-3888.94,0.00010993,2]
[333147652,1721889039451,-3890.79,0.00010993,2]
[333147654,1721889039460,-1575.94,0.00010993,2]
[333147656,1721889039470,-1657.01,0.00010993,2]
[333147658,1721889039479,-2317.5,0.00010993,2]
[333147660,1721889039489,-500.0,0.00010993,2]
[333147662,1721889039499,-1698.89,0.00010993,2]
[333147664,1721889039509,-368.78433157,0.00010994,2]
[333147666,1721889039519,-500.0,0.00010994,2]
[333147667,1721889039528,-500.0,0.00010994,2]
[333147669,1721889039537,-500.0,0.00010994,2]
[333147671,1721889039547,-1225.25,0.00010994,2]
[333147673,1721889039558,-2169.18,0.00010994,2]
[333147675,1721889039567,-2212.86,0.00010994,2]
[333147677,1721889039577,-1135.53,0.00010994,2]
[333147679,1721889039587,-500.0,0.00010995,2]
[333147681,1721889039596,-552.99,0.00010995,2]
[333147683,1721889039606,-500.0,0.00010995,2]
[333147685,1721889039616,-887.63,0.00010995,2]
[333147687,1721889039626,-500.0,0.00010995,2]
[333147689,1721889039635,-2865.58,0.00010995,2]
[333147691,1721889039646,-500.0,0.00010995,2]
[333147692,1721889039655,-863.11,0.00010995,2]
[333147693,1721889039665,-642.3521972,0.00010995,2]
[333147694,1721889039675,-3169.01,0.00010995,2]
[333147695,1721889039684,-500.0,0.00010995,2]
[333147696,1721889039694,-500.0,0.00010995,2]
[333147697,1721889039704,-2725.27,0.00010995,2]
[333147698,1721889039714,-500.0,0.00010995,2]
[333147699,1721889039723,-956.08,0.00010995,2]
[333147700,1721889039733,-7855.67,0.00010995,2]
[333147701,1721889039742,-713.8,0.00010995,2]
[333147702,1721889039752,-4842.99,0.00010995,2]
[333147703,1721889039761,-843.52,0.00010995,2]
[333147704,1721889039771,-2012.44,0.00010995,2]
[333147705,1721889039781,-7195.15,0.00010995,2]
[333147706,1721889039790,-1571.2,0.00010995,2]
[333147707,1721889039800,-8297.29,0.00010995,2]
[333147708,1721889039811,-2347.48,0.00010995,2]
[333147709,1721889039820,-2986.69,0.00010995,2]
[333147710,1721889039829,-8510.53,0.00010995,2]
[333147711,1721889039838,-1483.45,0.00010995,2]
[333147712,1721889039848,-2743.65,0.00010995,2]
[333147713,1721889039858,-1952.41,0.00010995,2]
[333147715,1721889039867,-2354.59,0.00010995,2]
[333147717,1721889039877,-2559.96,0.00010995,2]
[333147719,1721889039886,-2224.35,0.00010995,2]
[333147721,1721889039895,-2769.04,0.00010995,2]
[333147723,1721889039905,-3333.86,0.00010995,2]
[333147725,1721889039914,-1378.46,0.00010995,2]
[333147727,1721889039923,-297.31,0.00010995,2]
[333147729,1721889039933,-500.0,0.00010996,2]
[333147731,1721889039942,-500.0,0.00010996,2]
[333147733,1721889039951,-500.0,0.00010996,2]
[333147735,1721889039960,-1225.25,0.00010996,2]
[333147737,1721889039971,-500.0,0.00010996,2]
[333147739,1721889039981,-2169.18,0.00010996,2]
[333147741,1721889039990,-2212.86,0.00010996,2]
[333147743,1721889039999,-1135.53,0.00010996,2]
[333147745,1721889040009,-1742.99,0.00010996,2]
[333147747,1721889040018,-500.0,0.00010996,2]
[333147749,1721889040027,-500.0,0.00010996,2]
[333147751,1721889040037,-500.0,0.00010996,2]
[333147752,1721889040046,-552.99,0.00010996,2]
[333147754,1721889040055,-359.73672268,0.00010996,2]
[333147756,1721889040065,-887.63,0.00010996,2]
[333147758,1721889040075,-500.0,0.00010996,2]
[333147760,1721889040085,-2865.58,0.00010996,2]
[333147762,1721889040095,-500.0,0.00010996,2]
[333147764,1721889040104,-863.11,0.00010996,2]
[333147766,1721889040114,-18103.22,0.00010996,2]
[333147769,1721889040124,-3169.01,0.00010996,2]
[333147771,1721889040133,-500.0,0.00010996,2]
[333147772,1721889040143,-500.0,0.00010996,2]
[333147774,1721889040152,-2725.27,0.00010996,2]
[333147776,1721889040162,-3738.99,0.00010996,2]
[333147778,1721889040172,-500.0,0.00010996,2]
[333147780,1721889040181,-956.08,0.00010996,2]
[333147782,1721889040190,-7855.67,0.00010996,2]
[333147784,1721889040200,-3500.4,0.00010996,2]
[333147786,1721889040210,-713.8,0.00010996,2]
[333147788,1721889040219,-4842.99,0.00010996,2]
[333147789,1721889040228,-3902.49,0.00010996,2]
[333147791,1721889040241,-843.52,0.00010996,2]
[333147793,1721889040251,-2012.44,0.00010996,2]
[333147795,1721889040260,-7195.15,0.00010996,2]
[333147797,1721889040269,-1571.2,0.00010996,2]
[333147799,1721889040279,-1152.91,0.00010996,2]
[333147801,1721889040289,-3888.94,0.00010996,2]
[333147802,1721889040298,-8297.29,0.00010996,2]
[333147804,1721889040308,-3890.79,0.00010996,2]
[333147807,1721889040320,-2347.48,0.00010996,2]
[333147809,1721889040330,-2986.69,0.00010996,2]
[333147811,1721889040339,-8510.53,0.00010996,2]
[333147813,1721889040348,-1657.01,0.00010996,2]
[333147814,1721889040358,-1483.45,0.00010996,2]
[333147816,1721889040367,-2743.65,0.00010996,2]
[333147818,1721889040377,-1952.41,0.00010996,2]
[333147820,1721889040386,-2354.59,0.00010996,2]
[333147822,1721889040396,-2317.5,0.00010996,2]
[333147824,1721889040406,-2559.96,0.00010996,2]
[333147826,1721889040416,-2224.35,0.00010996,2]
[333147828,1721889040425,-2769.04,0.00010996,2]
[333147830,1721889040435,-3333.86,0.00010996,2]
[333147831,1721889040444,-1378.46,0.00010996,2]
[333147833,1721889040454,-1698.89,0.00010996,2]
[333147835,1721889040464,-499.85352773,0.00010997,2]
[333147837,1721889040474,-500.0,0.00010997,2]
[333147839,1721889040484,-500.0,0.00010997,2]
[333147841,1721889040493,-500.0,0.00010997,2]
[333147843,1721889040503,-500.0,0.00010997,2]
[333147845,1721889040512,-500.0,0.00010997,2]
[333147847,1721889040521,-500.0,0.00010997,2]
[333147849,1721889040531,-500.0,0.00010997,2]
[333147851,1721889040540,-1225.25,0.00010997,2]
[333147853,1721889040549,-389.91,0.00010997,2]
[333147855,1721889040559,-2169.18,0.00010997,2]
[333147856,1721889040568,-2212.86,0.00010997,2]
[333147859,1721889040578,-1135.53,0.00010997,2]
[333147860,1721889040587,-1742.99,0.00010997,2]
[333147863,1721889040596,-1742.99,0.00010997,2]
[333147864,1721889040606,-1742.99,0.00010997,2]
[333147866,1721889040616,-500.0,0.00010997,2]
[333147868,1721889040626,-500.0,0.00010997,2]
[333147870,1721889040635,-500.0,0.00010997,2]
[333147872,1721889040644,-500.0,0.00010997,2]
[333147874,1721889040654,-500.0,0.00010997,2]
[333147876,1721889040664,-500.0,0.00010997,2]
[333147878,1721889040674,-500.0,0.00010997,2]
[333147880,1721889040683,-606.84794497,0.00010997,2]
[333147882,1721889040693,-1692.1,0.00010997,2]
[333147884,1721889040702,-1692.1,0.00010997,2]
[333147886,1721889040711,-552.99,0.00010997,2]
[333147888,1721889040721,-552.99,0.00010997,2]
[333147890,1721889040730,-552.99,0.00010997,2]
[333147892,1721889040739,-784.77,0.00010997,2]
[333147894,1721889040748,-784.77,0.00010997,2]
[333147896,1721889040757,-3771.44,0.00010997,2]
[333147897,1721889040767,-3771.44,0.00010997,2]
[333147898,1721889040776,-1181.64,0.00010997,2]
[333147899,1721889040785,-1181.64,0.00010997,2]
[333147900,1721889040794,-2888.62,0.00010997,2]
[333147901,1721889040803,-2888.62,0.00010997,2]
[333147902,1721889040813,-887.63,0.00010997,2]
[333147903,1721889040823,-887.63,0.00010997,2]
[333147904,1721889040832,-887.63,0.00010997,2]
[333147905,1721889040841,-500.0,0.00010997,2]
[333147906,1721889040851,-500.0,0.00010997,2]
[333147907,1721889040860,-4009.86,0.00010997,2]
[333147908,1721889040870,-1501.91,0.00010997,2]
[333147909,1721889040879,-500.0,0.00010997,2]
[333147910,1721889040888,-4009.86,0.00010997,2]
[333147911,1721889040897,-1501.91,0.00010997,2]
[333147912,1721889040906,-3303.22,0.00010997,2]
[333147913,1721889040916,-3303.22,0.00010997,2]
[333147914,1721889040925,-4154.96,0.00010997,2]
[333147915,1721889040934,-4154.96,0.00010997,2]
[333147917,1721889040944,-2865.58,0.00010997,2]
[333147919,1721889040953,-2865.58,0.00010997,2]
[333147921,1721889040962,-2865.58,0.00010997,2]
[333147923,1721889040971,-500.0,0.00010997,2]
[333147925,1721889040980,-500.0,0.00010997,2]
[333147927,1721889040989,-2952.26,0.00010997,2]
[333147929,1721889040998,-500.0,0.00010997,2]
[333147931,1721889041009,-2952.26,0.00010997,2]
[333147933,1721889041019,-500.0,0.00010997,2]
[333147935,1721889041029,-500.0,0.00010997,2]
[333147937,1721889041038,-500.0,0.00010997,2]
[333147938,1721889041048,-863.11,0.00010997,2]
[333147940,1721889041058,-863.11,0.00010997,2]
[333147942,1721889041068,-863.11,0.00010997,2]
[333147944,1721889041077,-18103.22,0.00010997,2]
[333147946,1721889041086,-18103.22,0.00010997,2]
[333147948,1721889041096,-18103.22,0.00010997,2]
[333147950,1721889041105,-3169.01,0.00010997,2]
[333147951,1721889041115,-3169.01,0.00010997,2]
[333147953,1721889041124,-3169.01,0.00010997,2]
[333147955,1721889041133,-500.0,0.00010997,2]
[333147957,1721889041142,-500.0,0.00010997,2]
[333147959,1721889041151,-500.0,0.00010997,2]
[333147961,1721889041161,-1265.18,0.00010997,2]
[333147962,1721889041170,-1265.18,0.00010997,2]
[333147964,1721889041179,-500.0,0.00010997,2]
[333147966,1721889041188,-500.0,0.00010997,2]
[333147968,1721889041198,-500.0,0.00010997,2]
[333147970,1721889041210,-500.0,0.00010997,2]
[333147972,1721889041221,-500.0,0.00010997,2]
[333147974,1721889041231,-500.0,0.00010997,2]
[333147976,1721889041243,-2725.27,0.00010997,2]
[333147978,1721889041253,-2725.27,0.00010997,2]
[333147980,1721889041263,-2725.27,0.00010997,2]
[333147982,1721889041272,-3738.99,0.00010997,2]
[333147983,1721889041281,-3738.99,0.00010997,2]
[333147985,1721889041291,-500.0,0.00010997,2]
[333147987,1721889041302,-500.0,0.00010997,2]
[333147989,1721889041314,-3738.99,0.00010997,2]
[333147991,1721889041323,-500.0,0.00010997,2]
[333147993,1721889041332,-500.0,0.00010997,2]
[333147995,1721889041342,-500.0,0.00010997,2]
[333147997,1721889041350,-500.0,0.00010997,2]
[333147999,1721889041360,-4755.47,0.00010997,2]
[333148001,1721889041369,-4755.47,0.00010997,2]
[333148003,1721889041378,-956.08,0.00010997,2]
[333148005,1721889041387,-956.08,0.00010997,2]
[333148007,1721889041397,-956.08,0.00010997,2]
[333148008,1721889041407,-956.08,0.00010997,2]
[333148010,1721889041416,-956.08,0.00010997,2]
[333148012,1721889041427,-956.08,0.00010997,2]
[333148014,1721889041436,-7855.67,0.00010997,2]
[333148016,1721889041446,-7855.67,0.00010997,2]
[333148018,1721889041455,-7855.67,0.00010997,2]
[333148020,1721889041464,-3500.4,0.00010997,2]
[333148022,1721889041473,-3500.4,0.00010997,2]
[333148024,1721889041482,-3500.4,0.00010997,2]
[333148026,1721889041491,-1268.85,0.00010997,2]
[333148028,1721889041501,-1268.85,0.00010997,2]
[333148030,1721889041510,-713.8,0.00010997,2]
[333148032,1721889041519,-713.8,0.00010997,2]
[333148034,1721889041528,-713.8,0.00010997,2]
[333148036,1721889041538,-713.8,0.00010997,2]
[333148038,1721889041548,-713.8,0.00010997,2]
[333148040,1721889041557,-713.8,0.00010997,2]
[333148042,1721889041568,-4842.99,0.00010997,2]
[333148044,1721889041578,-4842.99,0.00010997,2]
[333148046,1721889041588,-4842.99,0.00010997,2]
[333148048,1721889041597,-3902.49,0.00010997,2]
[333148049,1721889041606,-3902.49,0.00010997,2]
[333148051,1721889041615,-3902.49,0.00010997,2]
[333148053,1721889041624,-500.0,0.00010997,2]
[333148055,1721889041635,-843.52,0.00010997,2]
[333148057,1721889041644,-843.52,0.00010997,2]
[333148059,1721889041654,-843.52,0.00010997,2]
[333148061,1721889041663,-2012.44,0.00010997,2]
[333148063,1721889041672,-843.52,0.00010997,2]
[333148064,1721889041682,-2012.44,0.00010997,2]
[333148066,1721889041692,-843.52,0.00010997,2]
[333148068,1721889041701,-2012.44,0.00010997,2]
[333148070,1721889041710,-843.52,0.00010997,2]
[333148072,1721889041719,-2012.44,0.00010997,2]
[333148074,1721889041729,-7195.15,0.00010997,2]
[333148076,1721889041738,-2012.44,0.00010997,2]
[333148078,1721889041747,-7195.15,0.00010997,2]
[333148079,1721889041756,-1571.2,0.00010997,2]
[333148081,1721889041766,-2012.44,0.00010997,2]
[333148083,1721889041775,-7195.15,0.00010997,2]
[333148085,1721889041784,-1571.2,0.00010997,2]
[333148087,1721889041794,-1571.2,0.00010997,2]
[333148089,1721889041803,-1152.91,0.00010997,2]
[333148091,1721889041817,-1152.91,0.00010997,2]
[333148093,1721889041827,-1152.91,0.00010997,2]
[333148095,1721889041836,-3888.94,0.00010997,2]
[333148097,1721889041846,-3888.94,0.00010997,2]
[333148099,1721889041855,-3888.94,0.00010997,2]
[333148101,1721889041864,-8297.29,0.00010997,2]